bitfinex/quotes_ETHUSD_20250810
["timestamp","ask_amount","ask_price","bid_price","bid_amount"]
[1754818978869,6.60700833,4226.1,4226.0,0.21989843]
[1754818979064,7.04780833,4226.1,4226.0,0.21989843]
[1754818979486,7.04780833,4226.1,4226.0,0.21981376]
[1754818981090,2.91641582,4225.8,4225.7,1e-08]
[1754818981293,14.78347511,4225.8,4225.7,1e-08]
[1754818981494,15.26981887,4225.8,4225.7,1e-08]
[1754818982009,7.15583958,4225.8,4225.7,1e-08]
[1754818982378,6.60583958,4225.8,4225.7,1e-08]
[1754818982579,6.60583958,4225.8,4225.7,0.89320001]
[1754818983482,14.83821887,4225.8,4225.7,1e-08]
[1754818985379,14.8395556,4225.8,4225.7,1e-08]
[1754818987379,14.83933842,4225.8,4225.7,1e-08]
[1754818991422,6.60695913,4225.8,4225.7,1e-08]
[1754818992628,14.83933842,4225.8,4225.7,1e-08]
[1754818995547,15.38933842,4225.8,4225.7,1e-08]
[1754818999216,15.6108392,4225.8,4225.7,1e-08]
[1754818999617,15.38933842,4225.8,4225.7,1e-08]
[1754819000257,15.61086601,4225.8,4225.7,1e-08]
[1754819002928,15.61094551,4225.8,4225.7,1e-08]
[1754819005771,15.38933842,4225.8,4225.7,1e-08]
[1754819006074,15.61104986,4225.8,4225.7,1e-08]
[1754819007270,15.61104986,4225.8,4225.7,0.45540001]
[1754819007776,16.24830808,4225.8,4225.7,0.45540001]
[1754819008777,16.24830808,4225.8,4225.7,0.93030001]
[1754819009272,7.46592879,4225.8,4225.7,1e-08]
[1754819009478,7.46955244,4225.8,4225.7,0.93030001]
[1754819009948,7.46955244,4225.8,4225.7,0.45540001]
[1754819011744,7.46981269,4225.8,4225.7,0.45540001]
[1754819012072,6.83054133,4225.8,4225.7,1e-08]
[1754819013085,15.06292062,4225.8,4225.7,1e-08]
[1754819013385,16.06852062,4225.8,4225.7,1e-08]
[1754819013591,15.61292062,4225.8,4225.7,1e-08]
[1754819013745,7.38054133,4225.8,4225.7,1e-08]
[1754819014984,7.38054133,4225.8,4225.7,0.45540001]
[1754819015156,8.01983558,4225.8,4225.7,0.45540001]
[1754819015352,7.46983558,4225.8,4225.7,0.45540001]
[1754819015553,7.46984121,4225.8,4225.7,0.93030001]
[1754819015877,6.83054133,4225.8,4225.7,0.93030001]
[1754819016065,6.83054133,4225.8,4225.7,0.45540001]
[1754819016477,6.83054133,4225.8,4225.7,0.93030001]
[1754819016673,7.46984728,4225.8,4225.7,0.93030001]
[1754819018359,3.85884728,4225.8,4225.7,0.45540001]
[1754819018582,7.46784728,4225.8,4225.7,0.93030001]
[1754819018778,6.8272046,4225.8,4225.7,0.93030001]
[1754819018984,6.60523291,4225.8,4225.7,0.93030001]
[1754819019192,6.09381582,4225.8,4225.7,0.93030001]
[1754819026924,0.1184,4225.8,4225.7,0.93030001]
[1754819027096,3.7274,4225.8,4225.7,0.93030001]
[1754819030919,3.7294,4225.8,4225.7,0.93030001]
[1754819031813,0.1204,4225.8,4225.7,1.26418433]
[1754819032009,3.7284,4225.8,4225.7,1.26418433]
[1754819032941,3.7284,4225.8,4225.7,3.63065615]
[1754819033106,3.7284,4225.8,4225.7,1.26418433]
[1754819034008,3.7284,4225.8,4225.7,0.93030001]
[1754819034942,3.7284,4225.8,4225.7,1e-08]
[1754819034943,6.09481582,4225.8,4225.7,1e-08]
[1754819035348,6.56891582,4225.8,4225.7,1e-08]
[1754819035659,7.23588238,4225.8,4225.7,1e-08]
[1754819035950,7.07908238,4225.8,4225.7,1e-08]
[1754819036752,2.99831911,4225.8,4225.7,1e-08]
[1754819036924,3.7274,4225.8,4225.7,0.90340001]
[1754819039774,0.1204,4225.8,4225.7,0.90340001]
[1754819040063,0.1204,4225.8,4225.7,3.59855157]
[1754819040249,3.7274,4225.8,4225.7,1.23207975]
[1754819040451,3.7274,4225.8,4225.7,0.90340001]
[1754819041950,3.7274,4225.8,4225.7,3.26987183]
[1754819042366,3.7274,4225.8,4225.7,0.90340001]
[1754819043341,3.7274,4225.8,4225.7,0.47400001]
[1754819044067,3.7274,4225.8,4225.7,1e-08]
[1754819045066,3.7274,4225.8,4225.7,0.47400001]
[1754819046665,3.7274,4225.8,4225.7,1e-08]
[1754819048362,6.09381582,4225.8,4225.7,1e-08]
[1754819048669,3.7274,4225.8,4225.7,1e-08]
[1754819049259,6.09381582,4225.8,4225.7,1e-08]
[1754819051896,3.7274,4225.8,4225.7,1e-08]
[1754819052101,3.7274,4225.8,4225.7,0.47400001]
[1754819052267,3.7274,4225.8,4225.7,0.90340001]
[1754819052604,3.72873673,4225.8,4225.7,0.90340001]
[1754819052981,3.7274,4225.8,4225.7,0.90340001]
[1754819055580,3.7274,4225.8,4225.7,3.26987183]
[1754819055887,3.7274,4225.8,4225.7,0.90340001]
[1754819056076,0.1204,4225.8,4225.7,0.90340001]
[1754819056277,0.002,4225.8,4225.7,3.6721272]
[1754819056504,3.608,4225.8,4225.7,3.6721272]
[1754819056688,3.608,4225.8,4225.7,4.3825732]
[1754819057409,3.608,4225.8,4225.7,7.3825732]
[1754819058388,0.002,4225.8,4225.7,7.3825732]
[1754819058592,3.608,4225.8,4225.7,7.3825732]
[1754819063122,0.002,4225.8,4225.7,7.3825732]
[1754819066244,0.002,4225.8,4225.7,6.4791732]
[1754819066448,0.002,4225.8,4225.7,6.9651732]
[1754819066950,0.002,4225.8,4225.7,7.4225732]
[1754819068063,0.002,4225.8,4225.7,6.9365732]
[1754819068348,0.002,4225.8,4225.7,7.4225732]
[1754819069749,0.002,4225.8,4225.7,6.9651732]
[1754819069933,0.002,4225.8,4225.7,1e-08]
[1754819070648,0.002,4225.8,4225.7,2.85247183]
[1754819071255,0.002,4225.8,4225.7,3.30987183]
[1754819074245,0.002,4225.8,4225.7,2.85247183]
[1754819075871,0.002,4225.8,4225.7,5.36647183]
[1754819076078,0.002,4225.8,4225.7,7.15842696]
[1754819076381,0.002,4225.8,4225.7,7.27682696]
[1754819081793,0.002,4225.8,4225.7,3.11840001]
[1754819082669,0.002,4225.8,4225.7,5.48487183]
[1754819083201,0.002,4225.8,4225.7,3.00000001]
[1754819086001,0.002,4225.8,4225.7,1e-08]
[1754819086178,0.4321,4225.8,4225.7,1e-08]
[1754819086821,0.002,4225.8,4225.7,1e-08]
[1754819093708,0.4481,4225.8,4225.7,1e-08]
[1754819094207,2.81451582,4225.8,4225.7,1e-08]
[1754819094409,0.4481,4225.8,4225.7,1e-08]
[1754819094818,2.81451582,4225.8,4225.7,1e-08]
[1754819095212,2.83819582,4225.8,4225.7,1e-08]
[1754819095417,2.97131582,4225.8,4225.7,1e-08]
[1754819095904,2.99499582,4225.8,4225.7,1e-08]
[1754819097514,3.54499582,4225.8,4225.7,1e-08]
[1754819099490,7.14899582,4225.8,4225.7,1e-08]
[1754819099720,7.63573833,4225.8,4225.7,1e-08]
[1754819101533,7.12531582,4225.8,4225.7,1e-08]
[1754819103402,6.96851582,4225.8,4225.7,1e-08]
[1754819104305,2.36841582,4225.8,4225.7,1e-08]
[1754819104505,5.97241582,4225.8,4225.7,0.95060001]
[1754819104701,3.606,4225.8,4225.7,0.95060001]
[1754819104905,3.7244,4225.8,4225.7,0.95060001]
[1754819106217,6.09081582,4225.8,4225.7,1e-08]
[1754819117251,2.48681582,4225.8,4225.7,0.46730001]
[1754819117561,3.7234,4225.8,4225.7,0.90470001]
[1754819118840,3.605,4225.8,4225.7,3.27117183]
[1754819119046,3.605,4225.8,4225.7,6.84151337]
[1754819120149,3.605,4225.8,4225.7,4.47504155]
[1754819120343,3.605,4225.8,4225.7,6.84151337]
[1754819122652,3.605,4225.8,4225.7,4.47504155]
[1754819122853,3.605,4225.8,4225.7,1e-08]
[1754819124661,3.605,4225.8,4225.7,0.46730001]
[1754819125585,3.605,4225.8,4225.7,0.90470001]
[1754819125881,0.002,4225.8,4225.7,0.90470001]
[1754819126051,3.604,4225.8,4225.7,1e-08]
[1754819126376,3.604,4225.8,4225.7,0.90470001]
[1754819126952,3.604,4225.8,4225.7,1e-08]
[1754819128150,3.62768,4225.8,4225.7,1e-08]
[1754819128761,5.99409582,4225.8,4225.7,1e-08]
[1754819129053,5.97041582,4225.8,4225.7,1e-08]
[1754819129252,6.24561582,4225.8,4225.7,1e-08]
[1754819129576,6.70471582,4225.8,4225.7,1e-08]
[1754819130473,6.54791582,4225.8,4225.7,1e-08]
[1754819131165,6.08881582,4225.8,4225.7,1e-08]
[1754819135159,3.7224,4225.8,4225.7,0.90470001]
[1754819136167,0.1204,4225.8,4225.7,0.90470001]
[1754819136390,3.7224,4225.8,4225.7,1.23602411]
[1754819136696,3.7224,4225.8,4225.7,3.60249593]
[1754819140162,3.7224,4225.8,4225.7,1.23602411]
[1754819141158,3.7224,4225.8,4225.7,3.60249593]
[1754819145006,0.002,4226.3,4225.7,4.23602411]
[1754819145175,0.002,4226.6,4225.7,4.23602411]
[1754819145176,0.002,4226.6,4226.2,2.36619185]
[1754819145380,0.002,4226.6,4226.5,2.36602389]
[1754819145582,0.002,4226.6,4226.5,2.38968412]
[1754819145779,0.002,4226.6,4226.5,3.27072389]
[1754819146105,0.1204,4226.6,4226.5,3.27072389]
[1754819146306,3.7224,4226.6,4226.5,3.8344095]
[1754819146495,3.604,4226.6,4226.5,3.8344095]
[1754819146698,3.7224,4226.6,4226.5,3.8344095]
[1754819147603,3.7224,4226.6,4226.5,0.56368561]
[1754819147800,3.7224,4226.6,4226.3,2.3661212]
[1754819148002,3.7224,4226.6,4226.3,2.8183212]
[1754819148189,3.7224,4226.6,4226.4,0.4803]
[1754819148508,3.7224,4226.6,4226.1,2.36623185]
[1754819148708,3.604,4226.6,4226.4,0.9325]
[1754819148907,3.604,4226.6,4225.8,0.66446045]
[1754819148908,3.604,4226.6,4226.5,0.4803]
[1754819149109,3.604,4226.6,4226.5,0.9325]
[1754819149310,3.7224,4226.6,4226.5,0.9325]
[1754819149482,3.604,4226.6,4226.5,3.29852389]
[1754819149685,0.002,4226.6,4226.5,3.29852389]
[1754819149882,0.002,4226.6,4226.5,3.86498935]
[1754819150715,0.002,4226.6,4226.5,6.86498935]
[1754819151910,0.002,4226.6,4226.5,6.98338935]
[1754819152991,0.002,4226.6,4226.5,10.58538935]
[1754819154693,0.002,4226.6,4226.5,6.86498935]
[1754819155905,0.002,4226.6,4226.5,6.98538935]
[1754819157127,0.002,4226.6,4226.5,3.53318935]
[1754819157421,0.002,4226.6,4226.5,3.86498935]
[1754819157626,0.002,4226.6,4226.5,0.56646546]
[1754819157800,0.002,4226.6,4226.3,0.1184]
[1754819158001,0.002,4226.6,4226.5,2.36602389]
[1754819158514,0.002,4226.6,4226.5,3.29852389]
[1754819158914,0.002,4226.6,4226.5,6.29852389]
[1754819159300,0.002,4226.6,4226.5,6.41692389]
[1754819159500,0.002,4226.6,4226.5,10.91126936]
[1754819160216,0.002,4226.6,4226.5,10.8288363]
[1754819162852,0.002,4226.7,4226.6,5.36596791]
[1754819163005,0.002,4226.9,4226.8,3.55]
[1754819163308,0.002,4226.9,4226.8,9.63825596]
[1754819163505,0.002,4227.1,4227.0,2.36574402]
[1754819163705,0.002,4227.1,4227.0,8.96974402]
[1754819163910,0.002,4227.1,4227.0,9.42194402]
[1754819164116,0.002,4227.1,4227.0,9.90224402]
[1754819164722,0.002,4227.1,4227.0,6.29824402]
[1754819165037,0.002,4227.1,4227.0,7.57419125]
[1754819165238,0.002,4227.1,4227.0,11.18019125]
[1754819166832,0.002,4227.1,4227.0,10.24669125]
[1754819167130,0.002,4227.1,4227.0,11.17919125]
[1754819168213,0.002,4227.1,4227.0,11.29759125]
[1754819169149,0.002,4227.1,4227.0,6.85476825]
[1754819169310,0.002,4227.1,4227.0,7.33506825]
[1754819169622,0.002,4227.1,4227.0,10.94206825]
[1754819169806,0.002,4227.1,4227.0,11.39426825]
[1754819172233,0.002,4227.1,4227.0,10.94206825]
[1754819172540,0.002,4227.1,4227.0,10.46076825]
[1754819172748,0.002,4227.1,4227.0,11.39326825]
[1754819173040,0.002,4227.1,4227.0,7.78726825]
[1754819173419,0.002,4227.1,4227.0,11.39226825]
[1754819174943,0.002,4227.1,4227.0,6.85476825]
[1754819175145,0.002,4227.1,4227.0,10.45976825]
[1754819175538,0.002,4227.1,4227.0,6.85476825]
[1754819176144,0.002,4227.1,4227.0,5.57882102]
[1754819176459,0.002,4227.1,4227.0,5.46042102]
[1754819179318,0.002,4227.1,4227.0,9.98582102]
[1754819179522,0.002,4227.1,4227.0,10.10422102]
[1754819179757,1e-08,4227.1,4227.0,10.10422102]
[1754819179924,1e-08,4227.6,4227.5,2.36546422]
[1754819180124,1e-08,4227.6,4227.5,8.99411886]
[1754819180326,1e-08,4227.6,4227.5,10.01026422]
[1754819180551,1e-08,4227.6,4227.5,10.10493222]
[1754819181262,0.1588,4229.4,4227.5,10.10493222]
[1754819181263,0.429,4229.6,4227.9,2.36524042]
[1754819181466,0.1184,4229.2,4228.3,2.36501667]
[1754819181630,0.1184,4229.2,4228.3,9.11206683]
[1754819181941,0.1184,4229.2,4228.3,10.00981667]
[1754819184231,0.429,4229.1,4228.3,9.08841667]
[1754819185455,0.429,4229.1,4228.3,5.48341667]
[1754819185644,0.429,4229.1,4228.3,9.94957362]
[1754819185848,0.1184,4228.8,4228.3,9.94957362]
[1754819186238,0.1184,4228.8,4228.3,6.34557362]
[1754819186239,0.429,4228.7,4228.3,6.34557362]
[1754819188477,0.5474,4228.8,4228.3,5.36501667]
[1754819191038,0.5474,4228.8,4228.3,3.0]
[1754819192768,0.5474,4228.8,4228.3,5.36501667]
[1754819193266,0.1184,4228.8,4228.3,5.36501667]
[1754819194060,0.1184,4228.8,4228.3,6.28641667]
[1754819198565,0.1184,4228.8,4228.3,5.82421667]
[1754819199692,0.1184,4228.8,4228.3,6.28641667]
[1754819200175,0.1184,4228.8,4228.3,5.82421667]
[1754819200900,0.1184,4228.8,4228.3,6.28641667]
[1754819201193,0.1184,4228.8,4228.3,7.18161634]
[1754819201663,0.1184,4228.8,4228.3,6.72241634]
[1754819201863,0.1184,4228.8,4228.3,5.36501667]
[1754819202078,0.431,4228.4,4227.7,2.36534862]
[1754819202400,0.5898,4228.4,4227.7,0.1184]
[1754819202594,2.36511765,4228.2,4227.7,0.1184]
[1754819202760,2.95294051,4228.1,4227.4,2.36551706]
[1754819203161,0.5878,4228.1,4227.5,2.36546093]
[1754819203591,0.429,4228.1,4227.5,2.36546093]
[1754819204171,2.36503275,4228.3,4227.3,2.36556569]
[1754819204372,0.429,4228.2,4227.4,0.7338102]
[1754819204582,0.429,4228.2,4227.5,2.36545087]
[1754819204892,0.429,4228.2,4227.6,2.36539967]
[1754819205098,0.429,4228.2,4227.8,2.36527386]
[1754819205313,0.002,4228.4,4227.5,0.4592]
[1754819205464,0.002,4228.4,4227.8,0.9214]
[1754819205668,0.002,4228.4,4227.9,2.3652088]
[1754819205864,0.002,4228.4,4228.0,2.36516968]
[1754819206064,0.002,4228.4,4228.0,2.36513748]
[1754819206391,0.002,4228.4,4228.0,3.28653748]
[1754819206578,0.002,4228.4,4228.0,2.82433748]
[1754819206774,0.002,4228.4,4228.0,0.4592]
[1754819207094,0.002,4228.4,4228.0,2.3651794]
[1754819208162,0.002,4228.4,4227.9,2.36523075]
[1754819208565,0.002,4228.4,4227.9,2.82313075]
[1754819209664,0.002,4228.4,4228.0,2.82308209]
[1754819209865,0.002,4228.4,4228.0,0.4579]
[1754819212199,0.1184,4228.1,4228.0,0.4579]
[1754819213418,0.1184,4228.1,4228.0,2.82308448]
[1754819213571,0.1184,4228.1,4228.0,0.4579]
[1754819215415,0.1184,4228.1,4227.7,1.167977]
[1754819215634,0.1184,4228.1,4227.7,0.710077]
[1754819215923,0.002,4228.4,4227.8,0.8929]
[1754819216127,0.002,4228.4,4227.8,3.8929]
[1754819216324,0.002,4228.4,4228.0,0.1184]
[1754819216530,0.002,4228.4,4228.3,2.36501667]
[1754819216896,0.002,4228.4,4228.3,6.25791667]
[1754819217102,0.002,4228.4,4228.3,7.43206119]
[1754819221327,0.002,4228.4,4228.3,7.55046119]
[1754819221531,0.002,4228.4,4228.3,11.15046119]
[1754819224303,0.002,4228.4,4228.3,7.55046119]
[1754819224507,0.002,4228.4,4228.3,11.15046119]
[1754819226623,0.002,4228.4,4228.3,6.65756119]
[1754819226826,0.002,4228.4,4228.3,7.55046119]
[1754819228912,0.002,4228.4,4228.3,7.11546119]
[1754819229219,0.002,4228.4,4228.3,5.36501667]
[1754819231609,0.002,4228.4,4228.3,3.0]
[1754819232038,0.4484,4228.4,4228.3,3.0]
[1754819232412,0.4484,4228.4,4228.0,2.3651382]
[1754819232618,0.1184,4228.2,4228.0,2.3651382]
[1754819233018,0.1184,4228.2,4227.9,2.36523585]
[1754819233219,0.1184,4228.2,4228.0,2.36518275]
[1754819233426,0.1184,4228.2,4227.9,2.36522585]
[1754819233749,0.1184,4228.2,4228.0,2.36516531]
[1754819233927,0.1184,4228.2,4227.9,2.36523345]
[1754819234121,0.1184,4228.2,4228.0,2.365173]
[1754819234332,0.1184,4228.2,4227.9,2.36522352]
[1754819234558,0.1184,4228.2,4228.0,2.36515901]
[1754819236953,0.1184,4228.2,4228.0,2.36518448]
[1754819237250,0.1184,4228.2,4228.1,2.36512854]
[1754819237456,0.1184,4228.2,4228.1,2.86402854]
[1754819238255,0.1184,4228.2,4228.1,0.4989]
[1754819238834,0.1184,4228.2,4228.0,2.36517681]
[1754819239042,0.1184,4228.2,4227.9,2.36524042]
[1754819239237,0.1184,4228.2,4228.1,5.86402854]
[1754819239578,0.002,4228.4,4228.3,2.36501667]
[1754819240058,0.002,4228.4,4228.3,3.33216683]
[1754819240448,0.002,4228.4,4228.3,6.30851667]
[1754819243172,0.002,4228.4,4228.3,6.42691667]
[1754819243368,0.002,4228.4,4228.3,7.67786119]
[1754819246232,0.002,4228.4,4228.3,8.22786119]
[1754819248170,0.042,4228.9,4228.8,2.36473704]
[1754819248393,0.042,4228.9,4228.8,5.38838441]
[1754819248598,0.042,4228.9,4228.8,6.42663704]
[1754819248750,0.042,4228.9,4228.8,7.66568194]
[1754819249507,0.042,4228.9,4228.8,0.1184]
[1754819249796,0.042,4228.9,4228.8,2.36473704]
[1754819251153,0.042,4228.9,4228.7,2.36474762]
[1754819251459,0.042,4228.9,4228.7,2.36475048]
[1754819251654,0.042,4228.9,4228.5,2.36490481]
[1754819251984,0.042,4228.9,4228.8,2.36473704]
[1754819253280,0.042,4228.9,4228.7,2.36477955]
[1754819253485,0.042,4228.9,4228.5,2.364892]
[1754819253785,0.4721,4228.8,4228.4,3.1184]
[1754819253956,0.4721,4228.7,4228.5,2.36489228]
[1754819254295,0.5905,4228.7,4228.3,5.36500715]
[1754819254479,0.1184,4228.7,4228.4,2.36495962]
[1754819254681,0.1184,4228.7,4228.6,2.36484888]
[1754819254988,2.1184,4228.7,4228.6,2.36484888]
[1754819259496,2.1184,4228.7,4228.6,5.86374888]
[1754819259995,2.1184,4228.7,4228.6,6.73107936]
[1754819260190,2.0,4228.7,4228.6,7.17567936]
[1754819264368,2.0,4228.7,4228.6,10.77367936]
[1754819266299,2.0,4228.7,4228.6,7.17567936]
[1754819268194,2.0,4228.7,4228.6,6.23217936]
[1754819268709,2.0,4228.7,4228.6,6.69697936]
[1754819269574,2.0,4228.7,4228.6,7.17027936]
[1754819270386,2.0,4228.7,4228.6,4.28867936]
[1754819271575,2.0,4228.7,4228.6,4.31232784]
[1754819274109,2.0,4228.7,4228.6,7.31232784]
[1754819274317,2.0,4228.7,4228.6,7.28867936]
[1754819277594,0.042,4228.9,4228.7,0.55]
[1754819277820,0.042,4228.9,4228.8,9.51273704]
[1754819278306,0.042,4228.9,4228.8,10.45083704]
[1754819279303,0.042,4228.9,4228.8,9.90083704]
[1754819281525,0.042,4228.9,4228.8,10.56923704]
[1754819281691,0.042,4228.9,4228.8,12.01171864]
[1754819283591,1e-08,4228.9,4228.8,12.01171864]
[1754819287999,1e-08,4228.9,4228.8,12.01071864]
[1754819288332,1e-08,4228.9,4228.8,8.41371864]
[1754819288695,1e-08,4228.9,4228.8,7.47561864]
[1754819289028,1e-08,4228.9,4228.8,12.01071864]
[1754819289992,1e-08,4228.9,4228.8,6.92561864]
[1754819290387,1e-08,4228.9,4228.8,10.52261864]
[1754819293123,1e-08,4228.9,4228.8,6.92561864]
[1754819293326,1e-08,4228.9,4228.8,5.48313704]
[1754819295322,0.44390001,4228.9,4228.8,5.48313704]
[1754819296126,1e-08,4228.9,4228.8,5.48313704]
[1754819299815,1e-08,4228.9,4228.8,9.08013704]
[1754819300321,1e-08,4228.9,4228.8,5.48313704]
[1754819302645,1e-08,4228.9,4228.8,6.63719394]
[1754819302942,1e-08,4228.9,4228.8,7.10239394]
[1754819304045,1e-08,4228.9,4228.8,6.63719394]
[1754819304737,1e-08,4228.9,4228.8,7.10239394]
[1754819305447,1e-08,4228.9,4228.8,6.63719394]
[1754819306636,1e-08,4228.9,4228.8,2.48313704]
[1754819307011,1e-08,4228.9,4228.8,2.36473704]
[1754819307207,1e-08,4228.9,4228.8,2.82993704]
[1754819307916,1e-08,4228.9,4228.8,3.29373704]
[1754819308433,1e-08,4228.9,4228.8,2.82993704]
[1754819308637,1e-08,4228.9,4228.8,3.67081806]
[1754819309133,1e-08,4228.9,4228.8,3.20561806]
[1754819309306,1e-08,4228.9,4228.8,2.36473704]
[1754819309709,0.45340001,4228.9,4228.7,2.45943057]
[1754819309925,0.5718,4228.8,4228.6,5.3658486]
[1754819310526,0.1184,4228.8,4228.7,2.36479296]
[1754819324658,0.1184,4228.8,4228.6,0.001]
[1754819324823,0.4534,4228.7,4228.6,0.001]
[1754819325017,0.6122,4228.7,4228.6,0.001]
[1754819325224,2.81819296,4228.7,4228.6,0.001]
[1754819325449,2.97699296,4228.7,4228.6,0.001]
[1754819326948,3.00067296,4228.7,4228.6,0.001]
[1754819327445,3.55067296,4228.7,4228.6,0.001]
[1754819328951,3.55200969,4228.7,4228.6,0.001]
[1754819329948,0.00133673,4228.7,4228.6,0.001]
[1754819330136,3.7154,4228.7,4228.6,0.001]
[1754819330319,0.11973673,4228.7,4228.6,2.36584888]
[1754819330516,0.1184,4228.7,4228.6,3.26794888]
[1754819331226,0.1184,4228.7,4228.6,0.9031]
[1754819331421,0.1184,4228.7,4228.6,0.001]
[1754819332729,0.1184,4228.7,4228.6,0.9031]
[1754819333050,0.1184,4228.7,4228.6,3.26794888]
[1754819333254,0.1184,4228.7,4228.6,3.83133976]
[1754819336936,1e-08,4228.9,4228.8,2.36473704]
[1754819337357,1e-08,4228.9,4228.8,3.26683704]
[1754819338527,1e-08,4228.9,4228.8,3.29048441]
[1754819340339,1e-08,4228.9,4228.8,3.26683704]
[1754819340547,1e-08,4228.9,4228.8,3.96927442]
[1754819340854,1e-08,4228.9,4228.8,3.99292179]
[1754819341154,1e-08,4228.9,4228.8,3.96927442]
[1754819341949,1e-08,4228.9,4228.8,3.99292179]
[1754819342746,1e-08,4228.9,4228.8,3.96927442]
[1754819344955,1e-08,4228.9,4228.8,7.08767442]
[1754819345464,1e-08,4228.9,4228.8,11.23367442]
[1754819353466,1e-08,4228.9,4228.8,8.86893738]
[1754819354070,1e-08,4228.9,4228.8,11.23367442]
[1754819357352,1e-08,4228.9,4228.8,11.25637442]
[1754819359768,1e-08,4228.9,4228.8,11.25737442]
[1754819363752,0.04,4229.9,4229.3,0.55]
[1754819363947,0.002,4229.8,4229.7,5.91423387]
[1754819364148,0.002,4229.8,4229.7,10.44553387]
[1754819364359,0.002,4229.8,4229.7,10.11393387]
[1754819365054,0.002,4229.8,4229.7,9.17763387]
[1754819365254,0.002,4229.8,4229.7,10.68234325]
[1754819366043,0.04,4229.9,4229.8,105.36217797]
[1754819367648,1e-08,4229.9,4229.8,106.84847797]
[1754819368349,1e-08,4229.9,4229.8,106.96687797]
[1754819369252,1e-08,4229.9,4229.8,109.08057797]
[1754819369478,1e-08,4229.9,4229.8,112.88391865]
[1754819370451,2.3628775,4232.2,4230.0,0.55]
[1754819370683,0.7178,4231.8,4231.6,2.36315684]
[1754819370992,0.5994,4231.7,4231.6,2.36315684]
[1754819372895,0.18139072,4232.6,4231.6,2.36315684]
[1754819372896,0.00133673,4232.6,4231.8,2.36306063]
[1754819373051,0.559,4232.5,4231.8,3.61537834]
[1754819373985,0.1184,4232.5,4231.8,3.61537834]
[1754819374189,0.4406,4232.3,4231.8,2.48146063]
[1754819375967,0.4406,4232.3,4231.8,6.09446063]
[1754819378901,0.04,4232.9,4231.8,10.58076063]
[1754819379074,0.4806,4232.9,4231.8,10.58076063]
[1754819379269,0.04,4232.9,4231.8,5.48146063]
[1754819379574,0.04,4232.9,4231.7,2.80371647]
[1754819379575,0.4806,4231.9,4231.7,0.4406]
[1754819379806,0.4406,4231.8,4231.5,3.0]
[1754819379996,0.4406,4231.7,4231.4,2.36328401]
[1754819380327,0.1988,4231.9,4231.6,0.4406]
[1754819380509,0.4406,4231.7,4231.6,0.4406]
[1754819380705,0.5994,4231.7,4231.0,2.36345843]
[1754819381013,0.02368,4231.6,4230.9,2.36353791]
[1754819381218,0.02368,4231.6,4230.9,2.36355019]
[1754819381219,0.4406,4231.5,4230.9,2.36355019]
[1754819381424,2.36333987,4231.3,4231.2,0.2495]
[1754819381606,2.36333987,4231.3,4230.2,2.36394126]
[1754819381607,0.5994,4231.3,4230.5,2.36373733]
[1754819381808,0.4406,4231.3,4230.6,2.36368579]
[1754819382096,0.4406,4231.3,4230.9,0.001]
[1754819382322,0.4406,4231.2,4230.9,0.001]
[1754819382524,0.5994,4231.2,4230.9,0.001]
[1754819382725,0.4406,4231.1,4230.9,0.001]
[1754819383128,0.1588,4231.2,4230.9,0.001]
[1754819383312,0.4406,4231.0,4230.9,0.001]
[1754819383496,2.36328496,4231.4,4230.9,0.001]
[1754819383697,0.4406,4231.2,4230.9,0.001]
[1754819384231,0.1588,4231.4,4230.9,0.001]
[1754819384420,0.4406,4231.1,4230.9,0.710588]
[1754819384918,2.80378228,4231.6,4230.9,0.710588]
[1754819385126,0.4406,4231.5,4230.9,3.07414324]
[1754819385904,0.4406,4231.5,4230.9,0.710588]
[1754819386211,0.4406,4231.5,4230.9,3.07412731]
[1754819386412,0.4406,4231.5,4230.9,0.710588]
[1754819386797,2.8038367,4231.5,4230.9,0.710588]
[1754819387236,2.3634029,4231.2,4230.9,0.710588]
[1754819387539,0.467,4231.1,4230.9,0.710588]
[1754819387735,2.36332421,4231.4,4230.9,0.710588]
[1754819387903,0.467,4231.3,4230.9,0.710588]
[1754819388107,2.36335755,4231.3,4230.9,0.710588]
[1754819388412,0.467,4231.2,4230.9,0.710588]
[1754819388603,0.467,4231.1,4230.9,0.710588]
[1754819389152,0.1588,4231.4,4230.9,0.710588]
[1754819389305,2.98930744,4231.0,4230.9,0.001]
[1754819389633,3.10770744,4231.0,4230.9,0.001]
[1754819390329,0.7442,4231.0,4230.9,0.001]
[1754819390509,2.48190744,4231.0,4230.9,0.001]
[1754819390710,0.5854,4231.0,4230.9,0.001]
[1754819390913,2.36241124,4233.0,4232.0,87.69452882]
[1754819391117,6.77639312,4232.1,4232.0,87.69452882]
[1754819391317,7.40288721,4232.1,4232.0,87.69452882]
[1754819392016,6.89479312,4232.1,4232.0,87.69452882]
[1754819393011,6.90459312,4232.1,4232.0,87.69452882]
[1754819394131,7.02452448,4232.1,4232.0,87.69452882]
[1754819394847,7.02586121,4232.1,4232.0,87.69452882]
[1754819395946,6.90592985,4232.1,4232.0,87.69452882]
[1754819396624,6.89612985,4232.1,4232.0,87.69452882]
[1754819397154,2.73212985,4232.1,4232.0,87.69452882]
[1754819397331,6.34512985,4232.1,4232.0,87.69452882]
[1754819397653,2.73212985,4232.1,4232.0,87.69452882]
[1754819397962,6.34412985,4232.1,4232.0,87.69452882]
[1754819398260,6.09462985,4232.1,4232.0,87.69452882]
[1754819399551,3.73173673,4232.1,4232.0,87.69452882]
[1754819399756,3.03262985,4232.1,4232.0,87.69452882]
[1754819400050,6.75567603,4232.1,4232.0,87.69452882]
[1754819400227,10.26405942,4232.1,4232.0,87.69452882]
[1754819400423,16.41105942,4232.1,4232.0,87.69452882]
[1754819400825,16.41105942,4232.1,4232.0,82.23197515]
[1754819401245,16.41106244,4232.1,4232.0,82.23197515]
[1754819401442,18.90306244,4232.1,4232.0,19.16216567]